[Event "Titled Tuesday Blitz May 03 Early 2022"]
[White "Ismayil, Malak"]
[Black "Gatterer, Florian"]
[WhiteFideId "13412604"]
[BlackFideId "811688"]
[WhiteElo "1879"]
[BlackElo "2218"]
[Result "1-0"]
[Round "10"]
[TimeControl "180+1"]
[Date "2022.05.03"]
[WhiteClock "0:00:27"]
[BlackClock "0:00:02"]

1. e4 {[%clk 0:03:00]}  d6 {[%clk 0:02:59]} 2. d4 {[%clk 0:02:59]}  Nf6 {[%clk 0:03:00]} 3. Nc3 {[%clk 0:02:59]}  g6 {[%clk 0:03:00]} 4. g3 {[%clk 0:02:54]}  Bg7 {[%clk 0:03:00]} 5. Bg2 {[%clk 0:02:53]}  O-O {[%clk 0:03:00]} 6. Nge2 {[%clk 0:02:53]}  e5 {[%clk 0:03:00]} 7. O-O {[%clk 0:02:53]}  exd4 {[%clk 0:02:59]} 8. Nxd4 {[%clk 0:02:54]}  Re8 {[%clk 0:02:58]} 9. Bg5 {[%clk 0:02:52]}  h6 {[%clk 0:02:57]} 10. Bxf6 {[%clk 0:02:50]}  Bxf6 {[%clk 0:02:54]} 11. Nd5 {[%clk 0:02:48]}  Bg7 {[%clk 0:02:53]} 12. c3 {[%clk 0:02:45]}  Nc6 {[%clk 0:02:53]} 13. Nxc6 {[%clk 0:02:42]}  bxc6 {[%clk 0:02:52]} 14. Ne3 {[%clk 0:02:43]}  Rb8 {[%clk 0:02:43]} 15. Qd2 {[%clk 0:02:41]}  c5 {[%clk 0:02:38]} 16. Rfe1 {[%clk 0:02:36]}  a5 {[%clk 0:02:38]} 17. Rad1 {[%clk 0:02:36]}  a4 {[%clk 0:02:35]} 18. Nd5 {[%clk 0:02:32]}  a3 {[%clk 0:02:29]} 19. b3 {[%clk 0:02:31]}  Bb7 {[%clk 0:02:22]} 20. c4 {[%clk 0:02:31]}  Kh7 {[%clk 0:02:11]} 21. f4 {[%clk 0:02:19]}  Bxd5 {[%clk 0:02:04]} 22. cxd5 {[%clk 0:02:13]}  Bd4+ {[%clk 0:02:02]} 23. Kh1 {[%clk 0:02:13]}  Qd7 {[%clk 0:01:51]} 24. Re2 {[%clk 0:02:11]}  h5 {[%clk 0:01:47]} 25. Rde1 {[%clk 0:02:08]}  h4 {[%clk 0:01:37]} 26. Qd3 {[%clk 0:02:04]}  Qg4 {[%clk 0:01:31]} 27. Bf3 {[%clk 0:01:51]}  Qd7 {[%clk 0:01:27]} 28. Kg2 {[%clk 0:01:47]}  h3+ {[%clk 0:01:20]} 29. Kh1 {[%clk 0:01:46]}  f5 {[%clk 0:01:09]} 30. e5 {[%clk 0:01:42]}  Qb5 {[%clk 0:01:04]} 31. Qxb5 {[%clk 0:01:32]}  Rxb5 {[%clk 0:01:03]} 32. exd6 {[%clk 0:01:31]}  Rxe2 {[%clk 0:01:02]} 33. Bxe2 {[%clk 0:01:26]}  Rb7 {[%clk 0:00:26]} 34. Ba6 {[%clk 0:01:17]}  Ra7 {[%clk 0:00:20]} 35. d7 {[%clk 0:01:15]}  Bf6 {[%clk 0:00:20]} 36. Bc8 {[%clk 0:01:13]}  c4 {[%clk 0:00:18]} 37. bxc4 {[%clk 0:01:09]}  Ra4 {[%clk 0:00:18]} 38. Re8 {[%clk 0:00:50]}  Rb4 {[%clk 0:00:15]} 39. Kg1 {[%clk 0:00:49]}  Rb2 {[%clk 0:00:13]} 40. d8=Q {[%clk 0:00:45]}  Bxd8 {[%clk 0:00:13]} 41. Rxd8 {[%clk 0:00:46]}  Rg2+ {[%clk 0:00:11]} 42. Kf1 {[%clk 0:00:42]}  Rxa2 {[%clk 0:00:10]} 43. Rd7+ {[%clk 0:00:39]}  Kh6 {[%clk 0:00:08]} 44. Rxc7 {[%clk 0:00:38]}  Rxh2 {[%clk 0:00:06]} 45. Ra7 {[%clk 0:00:33]}  a2 {[%clk 0:00:06]} 46. Kg1 {[%clk 0:00:28]}  Rb2 {[%clk 0:00:02]} 47. d6 {[%clk 0:00:27]} 1-0


[Site "https://www.chess.com"]

[Event "Titled Tuesday Blitz May 03 Early 2022"]
[White "Jobava, Baadur"]
[Black "Bartel, Michal"]
[WhiteFideId "13601520"]
[BlackFideId "1119257"]
[WhiteElo "2617"]
[BlackElo "2211"]
[Result "0-1"]
[Round "10"]
[TimeControl "180+1"]
[Date "2022.05.03"]
[WhiteClock "0:00:12"]
[BlackClock "0:01:26"]

1. b3 {[%clk 0:01:54]}  d5 {[%clk 0:02:59]} 2. Bb2 {[%clk 0:01:51]}  Bg4 {[%clk 0:02:59]} 3. f3 {[%clk 0:01:51]}  Bh5 {[%clk 0:02:59]} 4. e3 {[%clk 0:01:52]}  Nd7 {[%clk 0:02:59]} 5. Nc3 {[%clk 0:01:51]}  e6 {[%clk 0:02:59]} 6. d4 {[%clk 0:01:51]}  c6 {[%clk 0:02:59]} 7. Qd2 {[%clk 0:01:50]}  Bd6 {[%clk 0:02:59]} 8. Nge2 {[%clk 0:01:51]}  Qc7 {[%clk 0:02:59]} 9. O-O-O {[%clk 0:01:50]}  Bg6 {[%clk 0:02:57]} 10. Nf4 {[%clk 0:01:49]}  Ne7 {[%clk 0:02:54]} 11. h4 {[%clk 0:01:48]}  h6 {[%clk 0:02:50]} 12. Nxg6 {[%clk 0:01:48]}  Nxg6 {[%clk 0:02:50]} 13. Bd3 {[%clk 0:01:48]}  Ne7 {[%clk 0:02:50]} 14. g4 {[%clk 0:01:47]}  e5 {[%clk 0:02:49]} 15. Kb1 {[%clk 0:01:47]}  O-O-O {[%clk 0:02:43]} 16. Qf2 {[%clk 0:01:26]}  exd4 {[%clk 0:02:40]} 17. exd4 {[%clk 0:01:27]}  Bg3 {[%clk 0:02:40]} 18. Qg2 {[%clk 0:01:24]}  Bf4 {[%clk 0:02:39]} 19. Ne2 {[%clk 0:01:22]}  Be3 {[%clk 0:02:37]} 20. f4 {[%clk 0:01:00]}  Ng6 {[%clk 0:02:34]} 21. Bxg6 {[%clk 0:00:56]}  fxg6 {[%clk 0:02:35]} 22. Qf3 {[%clk 0:00:54]}  Rde8 {[%clk 0:02:35]} 23. Rd3 {[%clk 0:00:54]}  Nf6 {[%clk 0:02:32]} 24. Rxe3 {[%clk 0:00:47]}  Rxe3 {[%clk 0:02:30]} 25. Qxe3 {[%clk 0:00:47]}  Re8 {[%clk 0:02:31]} 26. Qf3 {[%clk 0:00:47]}  Ne4 {[%clk 0:02:31]} 27. Rd1 {[%clk 0:00:43]}  Qa5 {[%clk 0:02:30]} 28. Bc3 {[%clk 0:00:39]}  Qd8 {[%clk 0:02:27]} 29. Kb2 {[%clk 0:00:39]}  Qxh4 {[%clk 0:02:26]} 30. Be1 {[%clk 0:00:37]}  Qf6 {[%clk 0:02:24]} 31. Ng3 {[%clk 0:00:36]}  Nd6 {[%clk 0:02:20]} 32. Bf2 {[%clk 0:00:36]}  g5 {[%clk 0:02:16]} 33. f5 {[%clk 0:00:35]}  Ne4 {[%clk 0:02:16]} 34. Nxe4 {[%clk 0:00:34]}  Rxe4 {[%clk 0:02:17]} 35. c3 {[%clk 0:00:29]}  Qe7 {[%clk 0:02:16]} 36. Rd2 {[%clk 0:00:28]}  a5 {[%clk 0:02:13]} 37. a4 {[%clk 0:00:26]}  b6 {[%clk 0:02:04]} 38. Bg3 {[%clk 0:00:23]}  Re3 {[%clk 0:02:02]} 39. Qf2 {[%clk 0:00:22]}  Qe4 {[%clk 0:01:58]} 40. Be5 {[%clk 0:00:22]}  Re1 {[%clk 0:01:53]} 41. Rc2 {[%clk 0:00:21]}  Qh1 {[%clk 0:01:47]} 42. Bxg7 {[%clk 0:00:16]}  Ra1 {[%clk 0:01:45]} 43. c4 {[%clk 0:00:15]}  Qb1+ {[%clk 0:01:43]} 44. Kc3 {[%clk 0:00:14]}  Ra3 {[%clk 0:01:40]} 45. Rb2 {[%clk 0:00:14]}  Qc1+ {[%clk 0:01:40]} 46. Kd3 {[%clk 0:00:14]}  dxc4+ {[%clk 0:01:37]} 47. Ke4 {[%clk 0:00:12]}  Rxb3 {[%clk 0:01:26]} 0-1


[Site "https://www.chess.com"]

[Event "Titled Tuesday Blitz May 03 Early 2022"]
[White "Kanyamarala, Tarun"]
[Black "Bendayan Claros, Aaron"]
[WhiteFideId "45004714"]
[BlackFideId "3803392"]
[WhiteElo "2177"]
[BlackElo "2132"]
[Result "1-0"]
[Round "10"]
[TimeControl "180+1"]
[Date "2022.05.03"]
[WhiteClock "0:00:14"]
[BlackClock "0:00:03"]

1. d4 {[%clk 0:02:57]}  d5 {[%clk 0:02:59]} 2. Bf4 {[%clk 0:02:57]}  Nf6 {[%clk 0:02:57]} 3. e3 {[%clk 0:02:57]}  e6 {[%clk 0:02:56]} 4. Nd2 {[%clk 0:02:57]}  Bd6 {[%clk 0:02:56]} 5. Ngf3 {[%clk 0:02:57]}  O-O {[%clk 0:02:55]} 6. Bd3 {[%clk 0:02:56]}  c5 {[%clk 0:02:55]} 7. c3 {[%clk 0:02:56]}  Qc7 {[%clk 0:02:55]} 8. Ne5 {[%clk 0:02:55]}  Nbd7 {[%clk 0:02:52]} 9. Ndf3 {[%clk 0:02:54]}  b6 {[%clk 0:02:52]} 10. O-O {[%clk 0:02:49]}  Bb7 {[%clk 0:02:52]} 11. Re1 {[%clk 0:02:49]}  Ne4 {[%clk 0:02:51]} 12. Bxe4 {[%clk 0:02:26]}  dxe4 {[%clk 0:02:50]} 13. Nxd7 {[%clk 0:02:24]}  Qxd7 {[%clk 0:02:49]} 14. dxc5 {[%clk 0:02:16]}  exf3 {[%clk 0:02:43]} 15. Qxd6 {[%clk 0:02:13]}  Qb5 {[%clk 0:01:44]} 16. cxb6 {[%clk 0:02:10]}  axb6 {[%clk 0:01:37]} 17. Qb4 {[%clk 0:02:09]}  Qxb4 {[%clk 0:01:01]} 18. cxb4 {[%clk 0:02:07]}  fxg2 {[%clk 0:01:02]} 19. e4 {[%clk 0:02:06]}  b5 {[%clk 0:00:57]} 20. Kxg2 {[%clk 0:02:03]}  Rfc8 {[%clk 0:00:56]} 21. Bd2 {[%clk 0:01:56]}  f5 {[%clk 0:00:54]} 22. Bc3 {[%clk 0:01:53]}  Bxe4+ {[%clk 0:00:53]} 23. f3 {[%clk 0:01:47]}  Bd5 {[%clk 0:00:53]} 24. a3 {[%clk 0:01:47]}  Kf7 {[%clk 0:00:52]} 25. Kf2 {[%clk 0:01:46]}  g5 {[%clk 0:00:52]} 26. Rg1 {[%clk 0:01:45]}  h6 {[%clk 0:00:52]} 27. h4 {[%clk 0:01:45]}  Rg8 {[%clk 0:00:49]} 28. hxg5 {[%clk 0:01:45]}  hxg5 {[%clk 0:00:49]} 29. Rh1 {[%clk 0:01:45]}  g4 {[%clk 0:00:43]} 30. Rh7+ {[%clk 0:01:44]}  Kg6 {[%clk 0:00:43]} 31. Rah1 {[%clk 0:01:43]}  Bxf3 {[%clk 0:00:10]} 32. R1h6+ {[%clk 0:01:37]}  Kg5 {[%clk 0:00:10]} 33. Bd2+ {[%clk 0:01:34]}  f4 {[%clk 0:00:11]} 34. Rh5+ {[%clk 0:01:30]}  Kf6 {[%clk 0:00:06]} 35. Bxf4 {[%clk 0:01:17]}  Rac8 {[%clk 0:00:06]} 36. Be5+ {[%clk 0:01:14]}  Kg6 {[%clk 0:00:05]} 37. Bc3 {[%clk 0:01:12]}  Bd5 {[%clk 0:00:03]} 38. Kg3 {[%clk 0:01:10]}  Rgf8 {[%clk 0:00:02]} 39. R7h6+ {[%clk 0:01:06]}  Kf7 {[%clk 0:00:02]} 40. Kxg4 {[%clk 0:01:04]}  Ke7 {[%clk 0:00:01]} 41. Kg3 {[%clk 0:01:00]}  Kd6 {[%clk 0:00:01]} 42. Be5+ {[%clk 0:00:59]}  Kd7 {[%clk 0:00:01]} 43. Rh7+ {[%clk 0:00:58]}  Kc6 {[%clk 0:00:02]} 44. Ra7 {[%clk 0:00:56]}  Rf3+ {[%clk 0:00:03]} 45. Kh2 {[%clk 0:00:54]}  Rg8 {[%clk 0:00:03]} 46. Rhh7 {[%clk 0:00:44]}  Rf2+ {[%clk 0:00:03]} 47. Kh3 {[%clk 0:00:43]}  Bg2+ {[%clk 0:00:03]} 48. Kh4 {[%clk 0:00:41]}  Kd5 {[%clk 0:00:04]} 49. Bg3 {[%clk 0:00:37]}  Be4 {[%clk 0:00:03]} 50. Rhd7+ {[%clk 0:00:29]}  Kc4 {[%clk 0:00:03]} 51. Bxf2 {[%clk 0:00:29]}  Bd5 {[%clk 0:00:04]} 52. Rac7+ {[%clk 0:00:28]}  Kb3 {[%clk 0:00:04]} 53. Bd4 {[%clk 0:00:26]}  Rf8 {[%clk 0:00:04]} 54. Bc3 {[%clk 0:00:25]}  Rf4+ {[%clk 0:00:03]} 55. Kg5 {[%clk 0:00:25]}  Rf3 {[%clk 0:00:03]} 56. Rd8 {[%clk 0:00:24]}  Rf1 {[%clk 0:00:03]} 57. Re7 {[%clk 0:00:23]}  Rg1+ {[%clk 0:00:03]} 58. Kf6 {[%clk 0:00:23]}  Rf1+ {[%clk 0:00:03]} 59. Ke5 {[%clk 0:00:23]}  Re1+ {[%clk 0:00:03]} 60. Kd6 {[%clk 0:00:24]}  Rd1 {[%clk 0:00:03]} 61. Kc7 {[%clk 0:00:24]}  Rf1 {[%clk 0:00:02]} 62. Rd6 {[%clk 0:00:23]}  Rf8 {[%clk 0:00:01]} 63. Rb6 {[%clk 0:00:22]}  Ka4 {[%clk 0:00:01]} 64. Kd6 {[%clk 0:00:23]}  Bc4 {[%clk 0:00:01]} 65. Ra7+ {[%clk 0:00:21]}  Kb3 {[%clk 0:00:01]} 66. Rg7 {[%clk 0:00:18]}  Rd8+ {[%clk 0:00:01]} 67. Ke7 {[%clk 0:00:17]}  Rd1 {[%clk 0:00:02]} 68. Rg3 {[%clk 0:00:17]}  Kc2 {[%clk 0:00:02]} 69. Bf6 {[%clk 0:00:17]}  Rf1 {[%clk 0:00:01]} 70. Rc3+ {[%clk 0:00:16]}  Kd2 {[%clk 0:00:01]} 71. Rd6+ {[%clk 0:00:16]}  Ke2 {[%clk 0:00:01]} 72. Rxc4 {[%clk 0:00:15]}  bxc4 {[%clk 0:00:01]} 73. Rxe6+ {[%clk 0:00:15]}  Kd3 {[%clk 0:00:02]} 74. Bc3 {[%clk 0:00:14]}  Kc2 {[%clk 0:00:02]} 75. Kd6 {[%clk 0:00:14]}  Kb3 {[%clk 0:00:02]} 76. Kc5 {[%clk 0:00:14]}  Rf5+ {[%clk 0:00:02]} 77. Re5 {[%clk 0:00:14]}  Rf7 {[%clk 0:00:01]} 78. b5 {[%clk 0:00:14]}  Rc7+ {[%clk 0:00:01]} 79. Kb6 {[%clk 0:00:14]}  Rc8 {[%clk 0:00:01]} 80. Kb7 {[%clk 0:00:14]}  Rg8 {[%clk 0:00:02]} 81. b6 {[%clk 0:00:15]}  Rg7+ {[%clk 0:00:02]} 82. Ka8 {[%clk 0:00:15]}  Rg8+ {[%clk 0:00:03]} 83. Ka7 {[%clk 0:00:15]}  Ka4 {[%clk 0:00:03]} 84. b7 {[%clk 0:00:15]}  Kb3 {[%clk 0:00:02]} 85. b8=Q+ {[%clk 0:00:13]}  Rxb8 {[%clk 0:00:03]} 86. Kxb8 {[%clk 0:00:14]} 1-0


[Site "https://www.chess.com"]

[Event "Titled Tuesday Blitz May 03 Early 2022"]
[White "Khokhlova, Daria"]
[Black "Estrada Nieto, Julian"]
[WhiteFideId "24182729"]
[BlackFideId "5101018"]
[WhiteElo "2034"]
[BlackElo "2252"]
[Result "1-0"]
[Round "10"]
[TimeControl "180+1"]
[Date "2022.05.03"]
[WhiteClock "0:00:21"]
[BlackClock "0:00:36"]

1. d4 {[%clk 0:03:00]}  Nf6 {[%clk 0:02:57]} 2. c4 {[%clk 0:03:00]}  e6 {[%clk 0:02:56]} 3. Nf3 {[%clk 0:02:59]}  c5 {[%clk 0:02:55]} 4. d5 {[%clk 0:02:58]}  exd5 {[%clk 0:02:55]} 5. cxd5 {[%clk 0:02:59]}  d6 {[%clk 0:02:55]} 6. Nc3 {[%clk 0:02:59]}  g6 {[%clk 0:02:56]} 7. g3 {[%clk 0:02:59]}  Bg7 {[%clk 0:02:56]} 8. Bg2 {[%clk 0:02:59]}  O-O {[%clk 0:02:57]} 9. O-O {[%clk 0:03:00]}  Re8 {[%clk 0:02:57]} 10. Bf4 {[%clk 0:03:00]}  a6 {[%clk 0:02:56]} 11. a4 {[%clk 0:02:59]}  Bf5 {[%clk 0:02:55]} 12. Nd2 {[%clk 0:02:58]}  Nh5 {[%clk 0:02:52]} 13. e4 {[%clk 0:02:52]}  Nxf4 {[%clk 0:02:50]} 14. gxf4 {[%clk 0:02:52]}  Bc8 {[%clk 0:02:44]} 15. Nc4 {[%clk 0:02:48]}  Bd4 {[%clk 0:02:36]} 16. a5 {[%clk 0:02:24]}  Qf6 {[%clk 0:02:27]} 17. Qd2 {[%clk 0:02:08]}  Nd7 {[%clk 0:02:23]} 18. Ne2 {[%clk 0:02:08]}  Rb8 {[%clk 0:02:20]} 19. Nxd4 {[%clk 0:02:07]}  cxd4 {[%clk 0:02:20]} 20. Rfe1 {[%clk 0:01:17]}  Nc5 {[%clk 0:02:15]} 21. Rad1 {[%clk 0:01:09]}  d3 {[%clk 0:02:09]} 22. b4 {[%clk 0:01:05]}  Na4 {[%clk 0:01:54]} 23. Qxd3 {[%clk 0:01:03]}  Bd7 {[%clk 0:01:53]} 24. e5 {[%clk 0:00:56]}  Qxf4 {[%clk 0:01:52]} 25. Re4 {[%clk 0:00:41]}  Qg5 {[%clk 0:01:43]} 26. h4 {[%clk 0:00:32]}  Qh6 {[%clk 0:01:35]} 27. Nxd6 {[%clk 0:00:25]}  Nb2 {[%clk 0:01:31]} 28. Qd2 {[%clk 0:00:17]}  Qh5 {[%clk 0:01:21]} 29. Nxe8 {[%clk 0:00:16]}  Rxe8 {[%clk 0:01:16]} 30. Rde1 {[%clk 0:00:16]}  Bb5 {[%clk 0:01:11]} 31. e6 {[%clk 0:00:16]}  Nc4 {[%clk 0:01:11]} 32. Qd4 {[%clk 0:00:16]}  fxe6 {[%clk 0:01:10]} 33. dxe6 {[%clk 0:00:16]}  Qh6 {[%clk 0:01:06]} 34. e7 {[%clk 0:00:16]}  Qg7 {[%clk 0:01:04]} 35. Qxg7+ {[%clk 0:00:15]}  Kxg7 {[%clk 0:01:04]} 36. Bf1 {[%clk 0:00:16]}  Nd6 {[%clk 0:01:02]} 37. Re6 {[%clk 0:00:15]}  Bxf1 {[%clk 0:01:00]} 38. Kxf1 {[%clk 0:00:15]}  Nf5 {[%clk 0:01:00]} 39. h5 {[%clk 0:00:14]}  Kf7 {[%clk 0:00:55]} 40. hxg6+ {[%clk 0:00:13]}  hxg6 {[%clk 0:00:55]} 41. Rb6 {[%clk 0:00:14]}  Rb8 {[%clk 0:00:50]} 42. e8=Q+ {[%clk 0:00:13]}  Rxe8 {[%clk 0:00:49]} 43. Rxe8 {[%clk 0:00:13]}  Kxe8 {[%clk 0:00:48]} 44. Rxb7 {[%clk 0:00:13]}  Nd4 {[%clk 0:00:47]} 45. Rb6 {[%clk 0:00:13]}  g5 {[%clk 0:00:46]} 46. Rxa6 {[%clk 0:00:12]}  Kd7 {[%clk 0:00:44]} 47. Rg6 {[%clk 0:00:12]}  Ne6 {[%clk 0:00:40]} 48. b5 {[%clk 0:00:11]}  Nc5 {[%clk 0:00:40]} 49. Rxg5 {[%clk 0:00:11]}  Nb3 {[%clk 0:00:39]} 50. a6 {[%clk 0:00:11]}  Nd4 {[%clk 0:00:38]} 51. a7 {[%clk 0:00:11]}  Nxb5 {[%clk 0:00:39]} 52. a8=Q {[%clk 0:00:11]}  Nd6 {[%clk 0:00:39]} 53. Qd5 {[%clk 0:00:11]}  Ke7 {[%clk 0:00:38]} 54. Rg7+ {[%clk 0:00:12]}  Kf6 {[%clk 0:00:38]} 55. Qxd6+ {[%clk 0:00:13]}  Kxg7 {[%clk 0:00:37]} 56. f4 {[%clk 0:00:14]}  Kh7 {[%clk 0:00:37]} 57. f5 {[%clk 0:00:15]}  Kg7 {[%clk 0:00:38]} 58. f6+ {[%clk 0:00:15]}  Kg8 {[%clk 0:00:38]} 59. Kf2 {[%clk 0:00:16]}  Kh7 {[%clk 0:00:38]} 60. Kf3 {[%clk 0:00:17]}  Kg6 {[%clk 0:00:38]} 61. Kf4 {[%clk 0:00:17]}  Kf7 {[%clk 0:00:39]} 62. Qe7+ {[%clk 0:00:18]}  Kg6 {[%clk 0:00:39]} 63. Qg7+ {[%clk 0:00:19]}  Kh5 {[%clk 0:00:39]} 64. f7 {[%clk 0:00:19]}  Kh4 {[%clk 0:00:37]} 65. f8=Q {[%clk 0:00:20]}  Kh3 {[%clk 0:00:36]} 66. Qfh8# {[%clk 0:00:21]} 1-0


[Site "https://www.chess.com"]

[Event "Titled Tuesday Blitz May 03 Early 2022"]
[White "Kozin, Yuri"]
[Black "Sebag, Marie"]
[WhiteFideId "4129920"]
[BlackFideId "617822"]
[WhiteElo "2590"]
[BlackElo "2440"]
[Result "0-1"]
[Round "10"]
[TimeControl "180+1"]
[Date "2022.05.03"]
[WhiteClock "0:00:45"]
[BlackClock "0:00:07"]

1. e4 {[%clk 0:03:00]}  c5 {[%clk 0:02:50]} 2. Nf3 {[%clk 0:03:00]}  d6 {[%clk 0:02:50]} 3. d4 {[%clk 0:03:00]}  cxd4 {[%clk 0:02:49]} 4. Nxd4 {[%clk 0:03:01]}  Nf6 {[%clk 0:02:49]} 5. Nc3 {[%clk 0:03:02]}  a6 {[%clk 0:02:50]} 6. Be3 {[%clk 0:03:01]}  e5 {[%clk 0:02:50]} 7. Nf3 {[%clk 0:03:01]}  Be7 {[%clk 0:02:49]} 8. Bc4 {[%clk 0:03:01]}  O-O {[%clk 0:02:49]} 9. O-O {[%clk 0:03:01]}  Be6 {[%clk 0:02:48]} 10. Bxe6 {[%clk 0:03:01]}  fxe6 {[%clk 0:02:48]} 11. Na4 {[%clk 0:02:55]}  Nc6 {[%clk 0:02:41]} 12. Ng5 {[%clk 0:02:51]}  Re8 {[%clk 0:01:26]} 13. Nxe6 {[%clk 0:02:25]}  Qd7 {[%clk 0:01:22]} 14. Ng5 {[%clk 0:02:23]}  Rab8 {[%clk 0:01:21]} 15. Nb6 {[%clk 0:02:22]}  Qg4 {[%clk 0:01:20]} 16. f3 {[%clk 0:02:07]}  Qh5 {[%clk 0:01:19]} 17. c3 {[%clk 0:02:04]}  h6 {[%clk 0:01:08]} 18. Qb3+ {[%clk 0:02:00]}  d5 {[%clk 0:01:04]} 19. Ne6 {[%clk 0:01:49]}  Bd6 {[%clk 0:00:34]} 20. exd5 {[%clk 0:01:44]}  Ne7 {[%clk 0:00:30]} 21. c4 {[%clk 0:01:36]}  e4 {[%clk 0:00:25]} 22. fxe4 {[%clk 0:01:20]}  Qxh2+ {[%clk 0:00:23]} 23. Kf2 {[%clk 0:01:19]}  Ng4+ {[%clk 0:00:22]} 24. Ke2 {[%clk 0:01:15]}  Qxg2+ {[%clk 0:00:21]} 25. Kd3 {[%clk 0:01:10]}  Nxe3 {[%clk 0:00:11]} 26. Kxe3 {[%clk 0:01:08]}  Ng6 {[%clk 0:00:11]} 27. Rg1 {[%clk 0:00:59]}  Qh3+ {[%clk 0:00:10]} 28. Kd2 {[%clk 0:00:58]}  Qh2+ {[%clk 0:00:10]} 29. Kd3 {[%clk 0:00:53]}  Rxe6 {[%clk 0:00:09]} 30. c5 {[%clk 0:00:49]}  Nf4+ {[%clk 0:00:07]} 31. Kc4 {[%clk 0:00:47]}  Rxe4+ {[%clk 0:00:07]} 32. Kc3 {[%clk 0:00:45]}  Be5# {[%clk 0:00:07]} 0-1


[Site "https://www.chess.com"]

[Event "Titled Tuesday Blitz May 03 Early 2022"]
[White "Lauridsen, Jesper Morch"]
[Black "Jakubiec, Artur"]
[WhiteFideId "1401890"]
[BlackFideId "1103261"]
[WhiteElo "2251"]
[BlackElo "2473"]
[Result "0-1"]
[Round "10"]
[TimeControl "180+1"]
[Date "2022.05.03"]
[WhiteClock "0:00:08"]
[BlackClock "0:00:46"]

1. e4 {[%clk 0:03:00]}  c5 {[%clk 0:02:59]} 2. Nf3 {[%clk 0:03:00]}  d6 {[%clk 0:03:00]} 3. d4 {[%clk 0:03:01]}  cxd4 {[%clk 0:03:01]} 4. Nxd4 {[%clk 0:03:01]}  Nf6 {[%clk 0:03:01]} 5. Nc3 {[%clk 0:03:01]}  a6 {[%clk 0:03:02]} 6. Bc4 {[%clk 0:03:01]}  e6 {[%clk 0:03:01]} 7. a4 {[%clk 0:03:02]}  Nbd7 {[%clk 0:02:56]} 8. Bxe6 {[%clk 0:02:59]}  fxe6 {[%clk 0:02:56]} 9. Nxe6 {[%clk 0:02:59]}  Qb6 {[%clk 0:02:37]} 10. a5 {[%clk 0:02:56]}  Qc6 {[%clk 0:02:36]} 11. Nd5 {[%clk 0:02:52]}  Nxd5 {[%clk 0:02:07]} 12. exd5 {[%clk 0:02:50]}  Qc4 {[%clk 0:02:07]} 13. b3 {[%clk 0:02:21]}  Qe4+ {[%clk 0:02:04]} 14. Be3 {[%clk 0:02:21]}  Qxg2 {[%clk 0:01:59]} 15. Rf1 {[%clk 0:02:06]}  Ne5 {[%clk 0:01:54]} 16. f4 {[%clk 0:01:44]}  Bxe6 {[%clk 0:01:39]} 17. dxe6 {[%clk 0:01:21]}  Ng4 {[%clk 0:01:33]} 18. Qd3 {[%clk 0:01:09]}  Nxe3 {[%clk 0:01:06]} 19. Qxe3 {[%clk 0:01:08]}  Be7 {[%clk 0:01:00]} 20. Rg1 {[%clk 0:01:08]}  Qxc2 {[%clk 0:00:59]} 21. Rc1 {[%clk 0:01:08]}  Qb2 {[%clk 0:00:58]} 22. Rc7 {[%clk 0:00:53]}  Qf6 {[%clk 0:00:56]} 23. Rxb7 {[%clk 0:00:21]}  O-O {[%clk 0:00:55]} 24. Rg4 {[%clk 0:00:18]}  Rae8 {[%clk 0:00:54]} 25. Kf2 {[%clk 0:00:17]}  g6 {[%clk 0:00:53]} 26. b4 {[%clk 0:00:13]}  d5 {[%clk 0:00:50]} 27. Kg2 {[%clk 0:00:12]}  Bd6 {[%clk 0:00:50]} 28. f5 {[%clk 0:00:11]}  Qxf5 {[%clk 0:00:46]} 29. Rh4 {[%clk 0:00:08]}  Qf1# {[%clk 0:00:46]} 0-1


[Site "https://www.chess.com"]

[Event "Titled Tuesday Blitz May 03 Early 2022"]
[White "Matveeva, Olga"]
[Black "Ovezdurdyyeva, Jemal"]
[WhiteFideId "24107018"]
[BlackFideId "14001888"]
[WhiteElo "2083"]
[BlackElo "1946"]
[Result "0-1"]
[Round "10"]
[TimeControl "180+1"]
[Date "2022.05.03"]
[WhiteClock "0:00:50"]
[BlackClock "0:00:44"]

1. d4 {[%clk 0:03:00]}  Nf6 {[%clk 0:02:59]} 2. c4 {[%clk 0:03:00]}  g6 {[%clk 0:03:00]} 3. Nf3 {[%clk 0:03:01]}  d5 {[%clk 0:02:59]} 4. cxd5 {[%clk 0:02:59]}  Nxd5 {[%clk 0:02:59]} 5. g3 {[%clk 0:02:59]}  Bg7 {[%clk 0:02:55]} 6. Bg2 {[%clk 0:02:59]}  O-O {[%clk 0:02:54]} 7. O-O {[%clk 0:02:59]}  Bf5 {[%clk 0:02:44]} 8. Nc3 {[%clk 0:02:59]}  Nxc3 {[%clk 0:02:43]} 9. bxc3 {[%clk 0:02:59]}  c5 {[%clk 0:02:42]} 10. e3 {[%clk 0:02:56]}  Be4 {[%clk 0:02:36]} 11. a4 {[%clk 0:02:53]}  Nc6 {[%clk 0:02:23]} 12. Ba3 {[%clk 0:02:49]}  cxd4 {[%clk 0:02:21]} 13. cxd4 {[%clk 0:02:50]}  Qd5 {[%clk 0:02:21]} 14. Nh4 {[%clk 0:02:46]}  Bxg2 {[%clk 0:02:21]} 15. Nxg2 {[%clk 0:02:47]}  e5 {[%clk 0:02:21]} 16. Bxf8 {[%clk 0:02:44]}  Rxf8 {[%clk 0:02:21]} 17. dxe5 {[%clk 0:02:43]}  Qxe5 {[%clk 0:02:19]} 18. Rb1 {[%clk 0:02:42]}  b6 {[%clk 0:02:16]} 19. Qf3 {[%clk 0:02:36]}  Na5 {[%clk 0:02:07]} 20. Qf4 {[%clk 0:02:33]}  Qe6 {[%clk 0:02:04]} 21. Rfd1 {[%clk 0:02:30]}  Nc4 {[%clk 0:02:03]} 22. Rb4 {[%clk 0:02:21]}  Ne5 {[%clk 0:02:02]} 23. Ne1 {[%clk 0:02:15]}  Qa2 {[%clk 0:01:52]} 24. Nf3 {[%clk 0:02:10]}  Qe2 {[%clk 0:01:44]} 25. Nxe5 {[%clk 0:01:54]}  Qxd1+ {[%clk 0:01:43]} 26. Kg2 {[%clk 0:01:54]}  Qd5+ {[%clk 0:01:42]} 27. Nf3 {[%clk 0:01:52]}  Rc8 {[%clk 0:01:37]} 28. Qe4 {[%clk 0:01:50]}  Qa2 {[%clk 0:01:26]} 29. Nd4 {[%clk 0:01:43]}  Bf8 {[%clk 0:01:22]} 30. Rb5 {[%clk 0:01:26]}  Qxa4 {[%clk 0:01:21]} 31. Rd5 {[%clk 0:01:25]}  Bc5 {[%clk 0:01:17]} 32. h4 {[%clk 0:01:22]}  Bxd4 {[%clk 0:01:12]} 33. Rxd4 {[%clk 0:01:21]}  Qc6 {[%clk 0:01:13]} 34. Qxc6 {[%clk 0:01:19]}  Rxc6 {[%clk 0:01:14]} 35. Rd7 {[%clk 0:01:19]}  a5 {[%clk 0:01:09]} 36. Ra7 {[%clk 0:01:16]}  Kg7 {[%clk 0:01:07]} 37. Kf3 {[%clk 0:01:16]}  Kf6 {[%clk 0:01:06]} 38. g4 {[%clk 0:01:14]}  h6 {[%clk 0:01:04]} 39. Kf4 {[%clk 0:01:13]}  Rc4+ {[%clk 0:01:04]} 40. e4 {[%clk 0:01:14]}  Rb4 {[%clk 0:01:02]} 41. g5+ {[%clk 0:01:13]}  hxg5+ {[%clk 0:01:01]} 42. hxg5+ {[%clk 0:01:14]}  Ke6 {[%clk 0:01:01]} 43. f3 {[%clk 0:01:14]}  a4 {[%clk 0:01:01]} 44. Ke3 {[%clk 0:01:09]}  Rb3+ {[%clk 0:00:58]} 45. Kf4 {[%clk 0:01:09]}  b5 {[%clk 0:00:58]} 46. Ra6+ {[%clk 0:01:08]}  Ke7 {[%clk 0:00:58]} 47. Ra7+ {[%clk 0:01:06]}  Kf8 {[%clk 0:00:57]} 48. e5 {[%clk 0:00:54]}  a3 {[%clk 0:00:52]} 49. Ke4 {[%clk 0:00:53]}  b4 {[%clk 0:00:51]} 50. f4 {[%clk 0:00:53]}  Rb2 {[%clk 0:00:47]} 51. e6 {[%clk 0:00:53]}  Re2+ {[%clk 0:00:46]} 52. Kd5 {[%clk 0:00:53]}  Rxe6 {[%clk 0:00:46]} 53. Kc4 {[%clk 0:00:50]}  Re4+ {[%clk 0:00:44]} 0-1


[Site "https://www.chess.com"]